Workbook

Sheet Calculations (hidden)
B2: Bandwidth | K2: Sensor Specs and calculation
B3: Protocol | C3: Bandwidth (Gbps) | E3: Bitness | F3: Bitness | G3: Sensor | H3: Max Height (V) | I3: Max Width (H) | K3: 2020BSI | M3: 2020e
B4: CXP3 | C4: 2.4 | E4: 8 | F4: 11 | G4: Iron 2020BSI | H4: 2048 | I4: 2048 | K4: Tclkseq (LVDS_clk/12)= | L4: 50 | M4: Tclkseq (LVDS_clk) = | N4: 45
B5: CXP6 | C5: 4.9 | E5: 10 | F5: 12 | G5: Iron 2020e | H5: 2048 | I5: 2048 | K5: Tline 12bit = | L5: =560*(1/(L4*1000000)) -> 1.12e-05 | M5: Tline RHDR = | N5: =534*(1/(N4*1000000)) -> 1.186666667e-05
B6: CXP12 | C6: 9.8 | E6: 12 | G6: Iron 2011e | H6: 1152 | I6: 2048 | K6: Tline 11bit = | L6: =330*(1/(L4*1000000)) -> 6.6e-06 | M6: Tline GHDR = | N6: =130*(1/(N4*1000000)) -> 2.888888889e-06
B7: CLHS | C7: 9.8 | K7: K * Tline (12bit) = | L7: =UserInterface!D27*L5 -> 0.0229376 | M7: K * Tline RHDR = | N7: =UserInterface!D27*N5 -> 0.02430293333
B8: 10GIGE Vision | C8: 9.8 | G8: Max Height of Selected Sensor (V): | H8: =VLOOKUP(UserInterface!B23,Calculations!G4:I6,2,FALSE) -> 2048 | K8: K * Tline (11bit) = | L8: =UserInterface!D27*L6 -> 0.0135168 | M8: (2K +14)* Tline GHDR = | N8: =(2*UserInterface!D27+14)*N6 -> 0.01187333333
G9: Max Width of Selected Sensor (H): | H9: =VLOOKUP(UserInterface!B23,Calculations!G4:I6,3,FALSE) -> 2048 | K9: (N + 1) * Tline (12bit) = | L9: =(H24+1)*L5 -> 0.0001232 | M9: (N + 1) * Tline RHDR = | N9: =(H24+1)*N5 -> 0.0001305333333
A10: Partial protocol availability as a function of the bitness mode. Only used for the selection in the user interface! | B10: 2020BSI 11bit | K10: (N + 1) * Tline (11bit) = | L10: =(H24+1)*L6 -> 7.26e-05 | M10: (2K+14 + Mblank) * Tline GHDR = | N10: =(2*UserInterface!D27+H23+14)*N6 -> 0.01187333333
B11: CXP6 | E11: Lower of the two | F11: Interface FPS | G11: Calculation | K11: N > (K-1) | L11: =IF(H24>UserInterface!D27,TRUE,FALSE) -> FALSE | M11: N > (K-1) | N11: =IF(H24>(UserInterface!D27-1),TRUE,FALSE) -> FALSE | P11: K | Q11: 2048
B12: CLHS | G12: Protocol Bandwidth (Gbps) | H12: =VLOOKUP((UserInterface!D29),B4:C8,2,FALSE) -> 4.9 | M12: GHDR_A | P12: N | Q12: 1024
B13: 10GIGE Vision | G13: Bits per line | H13: =UserInterface!D26*UserInterface!D28 -> 22528 | K13: Tline HS (11bit) = | L13: =360*(1/(L4*1000000)) -> 7.2e-06 | M13: GHDR_B
G14: Line duration (Limited by bandwidth) (us) | H14: =H13/(H12*1000) -> 4.59755102 | K14: (K/2) * Tline (HS, 11bit) = | L14: =(UserInterface!D27/2)*L13 -> 0.0073728 | M14: GHDR_C | P14: K x Tline = | Q14: =Q11*N26 -> 0.02339271111 | R14: =1/Q14 -> 42.74835846
B15: 2020BSI 12bit | G15: Total frame time (us) | H15: =H14*(UserInterface!D27) -> 9415.78449 | K15: (N + 1) * Tline (HS, 11bit) = | L15: =(H24+1)*L13 -> 7.92e-05 | M15: GHDR_D | P15: (N+1) x Tline = | Q15: =N26*(Q12+1) -> 0.01170777778 | R15: =1/Q15 -> 85.41330549
B16: CXP6 | G16: Interface Frame rate (fps) | H16: =IF(UserInterface!B23="Iron 2020BSI", 1000000/H15, interface_fps_calc(1000000/H15)) -> 106.2046398 | K16: N > (K/2-1) | L16: =IF(H24>(UserInterface!D27/2-1),TRUE,FALSE) -> FALSE
B17: CXP12 | F17: Sensor | G17: Sensor Max fps (mode dependant) | H17: =IF(NOT(UserInterface!D25="Normal Mode"),ROUNDDOWN(VLOOKUP(UserInterface!D25,Calculations!N32:P37,3,FALSE),0),VLOOKUP(UserInterface!D28,Calculations!O30:P31,2,FALSE)) -> 73.98200758 | M17: Tline RHDRB = | N17: =574*(1/(N4*1000000)) -> 1.275555556e-05
B18: CLHS | G18: Actual Max FPS | H18: =IF(UserInterface!B23="Iron 2020BSI", MIN(H16,H17), fps_result(MIN(H16,H17))) -> 73.98200758 | M18: K * Tline RHDRB = | N18: =UserInterface!D27*N17 -> 0.02612337778
B19: 10GIGE Vision | M19: N * Tline RHDRB = | N19: =(H24)*N17 -> 0.0001275555556
G21: Exposure Time & Mblank Parameters | M21: Tline DDS = | N21: =130*(1/(N4*1000000)) -> 2.888888889e-06
G22: Exposure Time (µs) - DDS Mode Only | H22: 4.9 | M22: DDS_A | N22: =IF(AND((H22/1000000)>O22,(H22/1000000)<O23),TRUE,FALSE) -> FALSE | O22: =110*(1/(N4*1000000))+N21 -> 5.333333333e-06
G23: MBLANK Lines - DDS & GHDR Modes Only | H23: 0 | M23: DDS_B | N23: =IF(AND((H22/1000000)>O23,(H22/1000000)<O24),TRUE,FALSE) -> FALSE | O23: =110*(1/(N4*1000000))+5*N21 -> 1.688888889e-05
G24: Exposure Time (line times) | H24: 10 | M24: DDS_C | N24: =IF(AND((H22/1000000)>O24),TRUE,FALSE) -> FALSE | O24: =110*(1/(N4*1000000))+(UserInterface!D27/2+5)*N21 -> 0.002975111111
G26: Exposure Time (line times) | M26: Tline LPM = | N26: =514*(1/(N4*1000000)) -> 1.142222222e-05
M29: Sensor | N29: Modes
M30: 2020BSI | N30: Normal Mode | O30: 12 | P30: =1/L7 -> 43.59654018
N31: Normal Mode | O31: 11 | P31: =1/L8 -> 73.98200758
N32: High Speed Mode | O32: - | P32: =IF(L16,1/L15,1/L14) -> 135.6336806
M33: 2020e/2011e | N33: Rolling HDR | O33: - | P33: =IF(N11,1/N9,1/N7) -> 41.14729635
N34: Global HDR | O34: - | P34: =IF(N11,1/N10,1/N8) -> 84.222347
N35: Rolling HDR Binning | O35: - | P35: =IF(N11,1/N19,1/N18) -> 38.27988894
N36: Delta Data Sampling | O36: - | P36: =1/(((UserInterface!D27/2)+13)*N21) -> 333.8031303
N37: Low Power Mode | O37: - | P37: =IF(N11,1/((H24+1)*N26),1/((UserInterface!D27)*N26)) -> 42.74835846
B40: 2020BSI Calculations | L40: 2020e/2011e Calculations
B41: High speed (HS) mode | H41: Normal + HDR modes
L42: DDS mode

Sheet UserInterface (hidden)
B4: IRON 2020
B7: Frame-Rate Calculator
B15: This document is provided as a simple and convinent tool for our customers to use. Please feel free to contact our support team with any questions - we will be happy to provide assitance and support! For more information, products and the latest updates visit our website, www.KayaInstruments.com
B20: Camera Selector
B22: Select a camera model from the drop-down menu below:
A23: Selector u | B23: Iron 2020BSI
C24: =VLOOKUP(B23,Calculations!G4:I6,2,FALSE)&" (V) x "&VLOOKUP(B23,Calculations!G4:I6,3,FALSE)&" (H)" -> 2048 (V) x 2048 (H)
B25: Mode Selection | D25: Normal Mode
B26: Desired Number of Horizontal Pixels (H) | D26: 2048
B27: Number of Desired lines (V) | D27: 2048
B28: Bitness Selection: | D28: 11
B29: Interface Selection: | D29: CXP6
B30: MAX Frame Rate: | D30: =Calculations!H18 -> 73.98200758

Sheet Start
B18: You must enable macros in order to use this calculator!
